[Event "November 21 Early 2023"]
[Site "https://www.chess.com"]
[Date "2023.11.21"]
[Round "5"]
[White "Mazurkiewicz, Michal"]
[Black "Gubajdullin, Alexei"]
[Result "1-0"]
[Board "111"]
[TimeControl "180+1"]
[WhiteFideId "1124943"]
[BlackFideId "4141202"]
[WhiteElo "2124"]
[BlackElo "2280"]
[WhiteTeam "POL"]
[BlackTeam "RUS"]
[WhiteClock "0:00:10"]
[BlackClock "0:01:40"]

1. e4 {[%clk 0:03:00]}  g6 {[%clk 0:02:59]} 2. d4 {[%clk 0:03:00]}  Bg7 {[%clk 0:02:59]} 3. Nc3 {[%clk 0:03:00]}  d6 {[%clk 0:03:00]} 4. f4 {[%clk 0:03:00]}  a6 {[%clk 0:02:59]} 5. Nf3 {[%clk 0:02:59]}  b5 {[%clk 0:03:00]} 6. Bd3 {[%clk 0:02:56]}  Nd7 {[%clk 0:02:59]} 7. O-O {[%clk 0:02:55]}  c5 {[%clk 0:03:00]} 8. dxc5 {[%clk 0:02:51]}  Nxc5 {[%clk 0:02:59]} 9. Be3 {[%clk 0:02:51]}  Nf6 {[%clk 0:02:50]} 10. e5 {[%clk 0:02:46]}  Ng4 {[%clk 0:02:49]} 11. Bxc5 {[%clk 0:02:46]}  dxc5 {[%clk 0:02:49]} 12. Be4 {[%clk 0:02:46]}  Ra7 {[%clk 0:02:41]} 13. Qxd8+ {[%clk 0:02:30]}  Kxd8 {[%clk 0:02:40]} 14. Rfd1+ {[%clk 0:02:16]}  Rd7 {[%clk 0:02:39]} 15. Ng5 {[%clk 0:02:04]}  Kc7 {[%clk 0:02:32]} 16. Nxf7 {[%clk 0:01:20]}  Rf8 {[%clk 0:02:31]} 17. Ng5 {[%clk 0:01:21]}  Rxd1+ {[%clk 0:02:30]} 18. Rxd1 {[%clk 0:01:22]}  Rxf4 {[%clk 0:02:29]} 19. Nd5+ {[%clk 0:01:22]}  Kb8 {[%clk 0:02:28]} 20. Nxf4 {[%clk 0:01:22]}  Bxe5 {[%clk 0:02:26]} 21. Ne2 {[%clk 0:01:15]}  Nf6 {[%clk 0:02:21]} 22. c3 {[%clk 0:01:08]}  Ng4 {[%clk 0:02:11]} 23. h3 {[%clk 0:00:46]}  Ne3 {[%clk 0:02:09]} 24. Rd3 {[%clk 0:00:46]}  Nc4 {[%clk 0:02:04]} 25. Rd5 {[%clk 0:00:28]}  Bc7 {[%clk 0:01:53]} 26. b3 {[%clk 0:00:25]}  Nd6 {[%clk 0:01:52]} 27. Bf3 {[%clk 0:00:24]}  Nf5 {[%clk 0:01:49]} 28. Nxh7 {[%clk 0:00:17]}  Be6 {[%clk 0:01:48]} 29. Rd3 {[%clk 0:00:14]}  Bb6 {[%clk 0:01:48]} 30. Kh1 {[%clk 0:00:10]}  c4 {[%clk 0:01:48]} 31. bxc4 {[%clk 0:00:10]}  Bxc4 {[%clk 0:01:48]} 32. Rd1 {[%clk 0:00:10]}  Bxa2 {[%clk 0:01:48]} 33. Nd4 {[%clk 0:00:09]}  Ne3 {[%clk 0:01:48]} 34. Re1 {[%clk 0:00:09]}  Nc4 {[%clk 0:01:44]} 35. Rxe7 {[%clk 0:00:09]}  Na5 {[%clk 0:01:41]} 36. Nc6+ {[%clk 0:00:07]}  Nxc6 {[%clk 0:01:40]} 37. Bxc6 {[%clk 0:00:08]}  Kc8 {[%clk 0:01:40]} 38. Nf6 {[%clk 0:00:07]}  Bd8 {[%clk 0:01:39]} 39. Re8 {[%clk 0:00:07]}  Kc7 {[%clk 0:01:39]} 40. Nd5+ {[%clk 0:00:07]}  Bxd5 {[%clk 0:01:34]} 41. Bxd5 {[%clk 0:00:07]}  Bf6 {[%clk 0:01:35]} 42. Re6 {[%clk 0:00:06]}  Bxc3 {[%clk 0:01:34]} 43. Rxa6 {[%clk 0:00:07]}  g5 {[%clk 0:01:33]} 44. Rc6+ {[%clk 0:00:06]}  Kd7 {[%clk 0:01:33]} 45. Rxc3 {[%clk 0:00:07]}  Kd6 {[%clk 0:01:34]} 46. Bf3 {[%clk 0:00:07]}  b4 {[%clk 0:01:34]} 47. Rd3+ {[%clk 0:00:07]}  Kc5 {[%clk 0:01:35]} 48. Rd5+ {[%clk 0:00:07]}  Kc4 {[%clk 0:01:35]} 49. Rxg5 {[%clk 0:00:07]}  b3 {[%clk 0:01:36]} 50. Bd5+ {[%clk 0:00:08]}  Kb4 {[%clk 0:01:37]} 51. Rg4+ {[%clk 0:00:08]}  Kc3 {[%clk 0:01:36]} 52. Rg3+ {[%clk 0:00:08]}  Kd4 {[%clk 0:01:36]} 53. Bxb3 {[%clk 0:00:09]}  Ke4 {[%clk 0:01:37]} 54. Kh2 {[%clk 0:00:10]}  Kf4 {[%clk 0:01:38]} 55. h4 {[%clk 0:00:10]}  Kf5 {[%clk 0:01:36]} 56. h5 {[%clk 0:00:11]}  Ke5 {[%clk 0:01:37]} 57. h6 {[%clk 0:00:12]}  Kf4 {[%clk 0:01:38]} 58. h7 {[%clk 0:00:12]}  Ke5 {[%clk 0:01:38]} 59. h8=Q+ {[%clk 0:00:13]}  Kf5 {[%clk 0:01:39]} 60. Qf8+ {[%clk 0:00:10]}  Ke4 {[%clk 0:01:39]} 61. Qe7+ {[%clk 0:00:10]}  Kd4 {[%clk 0:01:40]} 62. Qe3# {[%clk 0:00:10]} 1-0

[Event "November 21 Early 2023"]
[Site "https://www.chess.com"]
[Date "2023.11.21"]
[Round "5"]
[White "Streltsov, Alexey"]
[Black "Gutkin, Ilya"]
[Result "0-1"]
[Board "113"]
[TimeControl "180+1"]
[WhiteFideId "24104434"]
[BlackFideId "16203470"]
[WhiteElo "2311"]
[BlackElo "2248"]
[WhiteTeam "ISR"]
[BlackTeam "GER"]
[WhiteClock "0:00:09"]
[BlackClock "0:00:01"]

1. e4 {[%clk 0:03:00]}  e5 {[%clk 0:02:58]} 2. Nf3 {[%clk 0:03:01]}  Nc6 {[%clk 0:02:58]} 3. Bc4 {[%clk 0:03:01]}  Nf6 {[%clk 0:02:58]} 4. d3 {[%clk 0:03:01]}  Bc5 {[%clk 0:02:58]} 5. O-O {[%clk 0:03:00]}  O-O {[%clk 0:02:58]} 6. c3 {[%clk 0:02:59]}  d5 {[%clk 0:02:51]} 7. exd5 {[%clk 0:02:56]}  Nxd5 {[%clk 0:02:52]} 8. Re1 {[%clk 0:02:50]}  Re8 {[%clk 0:02:25]} 9. b4 {[%clk 0:02:44]}  Bb6 {[%clk 0:02:17]} 10. a4 {[%clk 0:02:25]}  a6 {[%clk 0:02:13]} 11. Bg5 {[%clk 0:01:47]}  f6 {[%clk 0:02:13]} 12. Be3 {[%clk 0:01:45]}  Be6 {[%clk 0:02:06]} 13. Bxb6 {[%clk 0:01:36]}  Nxb6 {[%clk 0:02:02]} 14. Bxe6+ {[%clk 0:01:37]}  Rxe6 {[%clk 0:02:02]} 15. Qb3 {[%clk 0:01:38]}  Qd5 {[%clk 0:01:52]} 16. c4 {[%clk 0:01:36]}  Qd7 {[%clk 0:01:51]} 17. a5 {[%clk 0:01:35]}  Nc8 {[%clk 0:01:49]} 18. Nc3 {[%clk 0:01:21]}  Nd6 {[%clk 0:01:40]} 19. d4 {[%clk 0:01:04]}  Nxd4 {[%clk 0:01:10]} 20. Nxd4 {[%clk 0:01:01]}  exd4 {[%clk 0:01:11]} 21. c5 {[%clk 0:01:02]}  Re8 {[%clk 0:01:07]} 22. cxd6 {[%clk 0:00:52]}  dxc3 {[%clk 0:01:04]} 23. dxc7 {[%clk 0:00:50]}  Kf8 {[%clk 0:00:46]} 24. Rxe6 {[%clk 0:00:21]}  Rxe6 {[%clk 0:00:46]} 25. Qxc3 {[%clk 0:00:20]}  Rc6 {[%clk 0:00:46]} 26. Qe3 {[%clk 0:00:20]}  Qxc7 {[%clk 0:00:44]} 27. Re1 {[%clk 0:00:20]}  Qd7 {[%clk 0:00:32]} 28. h3 {[%clk 0:00:20]}  Rd6 {[%clk 0:00:27]} 29. Qe4 {[%clk 0:00:19]}  Rd1 {[%clk 0:00:23]} 30. Rxd1 {[%clk 0:00:20]}  Qxd1+ {[%clk 0:00:23]} 31. Kh2 {[%clk 0:00:21]}  Qd6+ {[%clk 0:00:22]} 32. g3 {[%clk 0:00:21]}  Qd2 {[%clk 0:00:19]} 33. Kg2 {[%clk 0:00:21]}  Qd7 {[%clk 0:00:16]} 34. Qxh7 {[%clk 0:00:20]}  Qd5+ {[%clk 0:00:16]} 35. Kh2 {[%clk 0:00:21]}  Qd4 {[%clk 0:00:14]} 36. Qc2 {[%clk 0:00:18]}  Qxb4 {[%clk 0:00:13]} 37. Qc8+ {[%clk 0:00:19]}  Kf7 {[%clk 0:00:12]} 38. Qc7+ {[%clk 0:00:19]}  Kg6 {[%clk 0:00:11]} 39. h4 {[%clk 0:00:20]}  Qd4 {[%clk 0:00:10]} 40. Kg1 {[%clk 0:00:19]}  Qd5 {[%clk 0:00:09]} 41. g4 {[%clk 0:00:16]}  Qd1+ {[%clk 0:00:09]} 42. Kh2 {[%clk 0:00:15]}  Qxg4 {[%clk 0:00:10]} 43. Qxb7 {[%clk 0:00:15]}  Qxh4+ {[%clk 0:00:10]} 44. Kg1 {[%clk 0:00:16]}  Qg5+ {[%clk 0:00:10]} 45. Kf1 {[%clk 0:00:16]}  Qxa5 {[%clk 0:00:11]} 46. Qe4+ {[%clk 0:00:16]}  Qf5 {[%clk 0:00:10]} 47. Qg2+ {[%clk 0:00:17]}  Kh7 {[%clk 0:00:09]} 48. Qh1+ {[%clk 0:00:16]}  Kg6 {[%clk 0:00:07]} 49. Qg2+ {[%clk 0:00:16]}  Qg5 {[%clk 0:00:07]} 50. Qe4+ {[%clk 0:00:17]}  Kh6 {[%clk 0:00:06]} 51. Qh1+ {[%clk 0:00:17]}  Qh5 {[%clk 0:00:06]} 52. Qa8 {[%clk 0:00:17]}  Qd1+ {[%clk 0:00:06]} 53. Kg2 {[%clk 0:00:18]}  Qg4+ {[%clk 0:00:06]} 54. Kf1 {[%clk 0:00:18]}  Qc4+ {[%clk 0:00:06]} 55. Kg2 {[%clk 0:00:17]}  f5 {[%clk 0:00:04]} 56. f3 {[%clk 0:00:18]}  a5 {[%clk 0:00:04]} 57. Kg3 {[%clk 0:00:19]}  Qc5 {[%clk 0:00:02]} 58. Qe8 {[%clk 0:00:17]}  Kg5 {[%clk 0:00:02]} 59. Qd8+ {[%clk 0:00:16]}  Kg6 {[%clk 0:00:02]} 60. Qe8+ {[%clk 0:00:17]}  Kf6 {[%clk 0:00:03]} 61. Qd8+ {[%clk 0:00:17]}  Qe7 {[%clk 0:00:03]} 62. Qb6+ {[%clk 0:00:17]}  Kg5 {[%clk 0:00:02]} 63. Qxa5 {[%clk 0:00:17]}  Qe5+ {[%clk 0:00:01]} 64. Kg2 {[%clk 0:00:09]}  Qxa5 {[%clk 0:00:01]} 0-1

[Event "November 21 Early 2023"]
[Site "https://www.chess.com"]
[Date "2023.11.21"]
[Round "5"]
[White "Osinovsky, Stepan"]
[Black "WindWhistler11"]
[Result "1-0"]
[Board "114"]
[TimeControl "180+1"]
[WhiteFideId "4157354"]
[WhiteElo "2222"]
[BlackElo "2586"]
[WhiteTeam "RUS"]
[WhiteClock "0:00:09"]
[BlackClock "0:00:00"]

1. e4 {[%clk 0:02:50]}  e6 {[%clk 0:02:58]} 2. d3 {[%clk 0:02:49]}  d5 {[%clk 0:02:59]} 3. Nd2 {[%clk 0:02:49]}  Nf6 {[%clk 0:02:59]} 4. Ngf3 {[%clk 0:02:49]}  c5 {[%clk 0:03:00]} 5. g3 {[%clk 0:02:49]}  Nc6 {[%clk 0:03:00]} 6. Bg2 {[%clk 0:02:50]}  g6 {[%clk 0:03:01]} 7. O-O {[%clk 0:02:48]}  Bg7 {[%clk 0:03:01]} 8. Re1 {[%clk 0:02:49]}  O-O {[%clk 0:03:02]} 9. a4 {[%clk 0:02:48]}  b6 {[%clk 0:03:02]} 10. exd5 {[%clk 0:02:46]}  Nxd5 {[%clk 0:03:00]} 11. h4 {[%clk 0:02:43]}  h6 {[%clk 0:02:58]} 12. Nc4 {[%clk 0:02:41]}  Bb7 {[%clk 0:02:55]} 13. Nce5 {[%clk 0:02:38]}  Qc7 {[%clk 0:02:39]} 14. Nxc6 {[%clk 0:02:36]}  Bxc6 {[%clk 0:02:40]} 15. Qe2 {[%clk 0:02:35]}  Qb7 {[%clk 0:02:24]} 16. Kh2 {[%clk 0:02:15]}  Rad8 {[%clk 0:02:14]} 17. Ne5 {[%clk 0:02:14]}  Ne7 {[%clk 0:01:13]} 18. Nxc6 {[%clk 0:02:07]}  Nxc6 {[%clk 0:01:12]} 19. a5 {[%clk 0:01:57]}  Qc7 {[%clk 0:01:03]} 20. axb6 {[%clk 0:01:48]}  axb6 {[%clk 0:01:00]} 21. Bf4 {[%clk 0:01:40]}  e5 {[%clk 0:00:41]} 22. Be3 {[%clk 0:01:38]}  Nb4 {[%clk 0:00:33]} 23. Ra3 {[%clk 0:01:13]}  Rd6 {[%clk 0:00:33]} 24. Rea1 {[%clk 0:01:12]}  Rd7 {[%clk 0:00:21]} 25. c3 {[%clk 0:00:20]}  Nxd3 {[%clk 0:00:20]} 26. Ra7 {[%clk 0:00:21]}  Qd6 {[%clk 0:00:18]} 27. Rxd7 {[%clk 0:00:20]}  Qxd7 {[%clk 0:00:19]} 28. Rd1 {[%clk 0:00:18]}  c4 {[%clk 0:00:20]} 29. Bxb6 {[%clk 0:00:15]}  Qb5 {[%clk 0:00:17]} 30. Be3 {[%clk 0:00:11]}  Qxb2 {[%clk 0:00:17]} 31. Qxb2 {[%clk 0:00:11]}  Nxb2 {[%clk 0:00:17]} 32. Rd7 {[%clk 0:00:10]}  Na4 {[%clk 0:00:12]} 33. Bd5 {[%clk 0:00:09]}  Nxc3 {[%clk 0:00:00]} 34. Bxc4 {[%clk 0:00:09]} 1-0

[Event "November 21 Early 2023"]
[Site "https://www.chess.com"]
[Date "2023.11.21"]
[Round "5"]
[White "Bogaudinov, Rushan"]
[Black "gueraumasague"]
[Result "0-1"]
[Board "115"]
[TimeControl "180+1"]
[WhiteFideId "4129288"]
[WhiteElo "1908"]
[BlackElo "2586"]
[WhiteTeam "RUS"]
[WhiteClock "0:00:45"]
[BlackClock "0:00:21"]

1. e4 {[%clk 0:02:58]}  g6 {[%clk 0:02:59]} 2. Nf3 {[%clk 0:02:57]}  Bg7 {[%clk 0:02:57]} 3. d4 {[%clk 0:02:57]}  d6 {[%clk 0:02:54]} 4. g3 {[%clk 0:02:57]}  Nf6 {[%clk 0:02:52]} 5. Nc3 {[%clk 0:02:56]}  O-O {[%clk 0:02:48]} 6. Bg2 {[%clk 0:02:57]}  Nc6 {[%clk 0:02:49]} 7. O-O {[%clk 0:02:51]}  Bg4 {[%clk 0:02:49]} 8. h3 {[%clk 0:02:50]}  Bxf3 {[%clk 0:02:48]} 9. Bxf3 {[%clk 0:02:51]}  e5 {[%clk 0:02:48]} 10. dxe5 {[%clk 0:02:48]}  dxe5 {[%clk 0:02:49]} 11. Bg2 {[%clk 0:02:41]}  Nd4 {[%clk 0:02:44]} 12. Be3 {[%clk 0:02:40]}  Re8 {[%clk 0:02:43]} 13. Qd2 {[%clk 0:02:37]}  Ne6 {[%clk 0:01:43]} 14. Nd5 {[%clk 0:02:30]}  c6 {[%clk 0:01:40]} 15. Nxf6+ {[%clk 0:02:22]}  Bxf6 {[%clk 0:01:41]} 16. Rad1 {[%clk 0:02:17]}  Qxd2 {[%clk 0:01:39]} 17. Rxd2 {[%clk 0:02:17]}  Bd8 {[%clk 0:01:22]} 18. Rd7 {[%clk 0:02:13]}  Re7 {[%clk 0:01:22]} 19. Rfd1 {[%clk 0:02:10]}  Kf8 {[%clk 0:01:19]} 20. f4 {[%clk 0:02:00]}  Bb6 {[%clk 0:00:38]} 21. Kf2 {[%clk 0:01:40]}  exf4 {[%clk 0:00:38]} 22. gxf4 {[%clk 0:01:40]}  Nxf4 {[%clk 0:00:38]} 23. Rxe7 {[%clk 0:01:20]}  Bxe3+ {[%clk 0:00:26]} 24. Kxe3 {[%clk 0:01:20]}  Nxg2+ {[%clk 0:00:27]} 25. Kf2 {[%clk 0:01:18]}  Kxe7 {[%clk 0:00:28]} 26. Kxg2 {[%clk 0:01:18]}  Rd8 {[%clk 0:00:28]} 27. Rc1 {[%clk 0:01:09]}  Ke6 {[%clk 0:00:26]} 28. Kf3 {[%clk 0:01:07]}  Ke5 {[%clk 0:00:27]} 29. Ke3 {[%clk 0:01:07]}  Rd4 {[%clk 0:00:27]} 30. c3 {[%clk 0:01:04]}  Rxe4+ {[%clk 0:00:27]} 31. Kd3 {[%clk 0:01:04]}  f5 {[%clk 0:00:27]} 32. b4 {[%clk 0:01:03]}  f4 {[%clk 0:00:27]} 33. Rg1 {[%clk 0:01:00]}  Re3+ {[%clk 0:00:27]} 34. Kc4 {[%clk 0:01:00]}  Rxh3 {[%clk 0:00:26]} 35. Re1+ {[%clk 0:01:00]}  Re3 {[%clk 0:00:26]} 36. Rd1 {[%clk 0:01:00]}  f3 {[%clk 0:00:20]} 37. Rd7 {[%clk 0:00:59]}  f2 {[%clk 0:00:20]} 38. Rf7 {[%clk 0:00:57]}  Re4+ {[%clk 0:00:20]} 39. Kd3 {[%clk 0:00:45]}  Rf4 {[%clk 0:00:21]} 0-1

[Event "November 21 Early 2023"]
[Site "https://www.chess.com"]
[Date "2023.11.21"]
[Round "5"]
[White "Skatchkov, Valery"]
[Black "Pace, Christopher"]
[Result "1-0"]
[Board "117"]
[TimeControl "180+1"]
[WhiteFideId "24195812"]
[BlackFideId "2610167"]
[WhiteElo "2320"]
[BlackElo "2424"]
[WhiteTeam "RUS"]
[BlackTeam "CAN"]
[WhiteClock "0:00:06"]
[BlackClock "0:00:07"]

1. d4 {[%clk 0:02:59]}  Nf6 {[%clk 0:02:59]} 2. c4 {[%clk 0:02:59]}  e5 {[%clk 0:02:59]} 3. dxe5 {[%clk 0:02:59]}  Ng4 {[%clk 0:03:00]} 4. e4 {[%clk 0:02:59]}  Nxe5 {[%clk 0:03:00]} 5. f4 {[%clk 0:03:00]}  Ng6 {[%clk 0:02:59]} 6. Nc3 {[%clk 0:03:00]}  Bc5 {[%clk 0:02:55]} 7. Qh5 {[%clk 0:03:00]}  d6 {[%clk 0:02:52]} 8. Nf3 {[%clk 0:03:00]}  O-O {[%clk 0:02:48]} 9. Bd3 {[%clk 0:02:19]}  Nc6 {[%clk 0:02:44]} 10. Bd2 {[%clk 0:02:07]}  Nd4 {[%clk 0:01:28]} 11. O-O-O {[%clk 0:01:34]}  Nxf3 {[%clk 0:01:28]} 12. gxf3 {[%clk 0:01:34]}  Qh4 {[%clk 0:01:29]} 13. Qg5 {[%clk 0:01:23]}  Qxg5 {[%clk 0:01:27]} 14. fxg5 {[%clk 0:01:24]}  Bh3 {[%clk 0:01:21]} 15. f4 {[%clk 0:01:15]}  Bg2 {[%clk 0:01:15]} 16. Rhe1 {[%clk 0:01:15]}  Bf3 {[%clk 0:01:12]} 17. Be2 {[%clk 0:01:15]}  Bxe2 {[%clk 0:01:13]} 18. Rxe2 {[%clk 0:01:16]}  a6 {[%clk 0:01:08]} 19. a3 {[%clk 0:01:13]}  Rfe8 {[%clk 0:01:04]} 20. Kc2 {[%clk 0:01:12]}  Ne7 {[%clk 0:00:55]} 21. Kd3 {[%clk 0:00:57]}  Rad8 {[%clk 0:00:48]} 22. Rg2 {[%clk 0:00:53]}  c6 {[%clk 0:00:46]} 23. b4 {[%clk 0:00:46]}  Ba7 {[%clk 0:00:46]} 24. Be3 {[%clk 0:00:19]}  Bxe3 {[%clk 0:00:46]} 25. Kxe3 {[%clk 0:00:20]}  d5 {[%clk 0:00:46]} 26. Rgd2 {[%clk 0:00:20]}  d4+ {[%clk 0:00:45]} 27. Kf3 {[%clk 0:00:21]}  c5 {[%clk 0:00:39]} 28. bxc5 {[%clk 0:00:21]}  Nc6 {[%clk 0:00:39]} 29. Nd5 {[%clk 0:00:22]}  Kf8 {[%clk 0:00:31]} 30. h4 {[%clk 0:00:19]}  Rc8 {[%clk 0:00:29]} 31. Rb1 {[%clk 0:00:19]}  Na5 {[%clk 0:00:29]} 32. Nb6 {[%clk 0:00:16]}  Rcd8 {[%clk 0:00:25]} 33. e5 {[%clk 0:00:15]}  Re6 {[%clk 0:00:24]} 34. Ke4 {[%clk 0:00:14]}  Nc6 {[%clk 0:00:24]} 35. Nd5 {[%clk 0:00:11]}  Rd7 {[%clk 0:00:22]} 36. Rb6 {[%clk 0:00:10]}  Re8 {[%clk 0:00:21]} 37. Rdb2 {[%clk 0:00:11]}  Na5 {[%clk 0:00:14]} 38. Kxd4 {[%clk 0:00:09]}  Rc8 {[%clk 0:00:13]} 39. Rd6 {[%clk 0:00:09]}  Rxd6 {[%clk 0:00:11]} 40. exd6 {[%clk 0:00:08]}  Nc6+ {[%clk 0:00:09]} 41. Kd3 {[%clk 0:00:08]}  Na5 {[%clk 0:00:10]} 42. Re2 {[%clk 0:00:06]}  Rxc5 {[%clk 0:00:06]} 43. d7 {[%clk 0:00:07]}  Nc6 {[%clk 0:00:07]} 44. Re8# {[%clk 0:00:06]} 1-0

[Event "November 21 Early 2023"]
[Site "https://www.chess.com"]
[Date "2023.11.21"]
[Round "5"]
[White "ChainedDowntohell"]
[Black "Darmanin, Jake"]
[Result "1-0"]
[Board "118"]
[TimeControl "180+1"]
[BlackFideId "5601061"]
[WhiteElo "2579"]
[BlackElo "2119"]
[BlackTeam "MLT"]
[WhiteClock "0:00:09"]
[BlackClock "0:00:01"]

1. d4 {[%clk 0:03:00]}  Nf6 {[%clk 0:02:59]} 2. c4 {[%clk 0:02:58]}  e6 {[%clk 0:02:59]} 3. Nc3 {[%clk 0:02:56]}  d5 {[%clk 0:02:59]} 4. cxd5 {[%clk 0:02:56]}  exd5 {[%clk 0:03:00]} 5. Bg5 {[%clk 0:02:56]}  Bb4 {[%clk 0:02:58]} 6. e3 {[%clk 0:02:53]}  c6 {[%clk 0:02:57]} 7. Bd3 {[%clk 0:02:51]}  h6 {[%clk 0:02:57]} 8. Bf4 {[%clk 0:02:51]}  O-O {[%clk 0:02:50]} 9. Qc2 {[%clk 0:02:49]}  Re8 {[%clk 0:02:47]} 10. h3 {[%clk 0:02:46]}  Nbd7 {[%clk 0:02:41]} 11. Nf3 {[%clk 0:02:45]}  b6 {[%clk 0:02:38]} 12. O-O {[%clk 0:02:42]}  Bb7 {[%clk 0:02:36]} 13. Ne5 {[%clk 0:02:34]}  Nxe5 {[%clk 0:02:28]} 14. dxe5 {[%clk 0:02:30]}  Nd7 {[%clk 0:02:28]} 15. a3 {[%clk 0:02:12]}  Bf8 {[%clk 0:02:27]} 16. Bh7+ {[%clk 0:01:51]}  Kh8 {[%clk 0:02:26]} 17. Rad1 {[%clk 0:01:39]}  Nxe5 {[%clk 0:02:21]} 18. e4 {[%clk 0:01:32]}  d4 {[%clk 0:02:21]} 19. Bxe5 {[%clk 0:01:14]}  Rxe5 {[%clk 0:02:18]} 20. f4 {[%clk 0:01:14]}  Rc5 {[%clk 0:02:15]} 21. e5 {[%clk 0:01:10]}  Ba6 {[%clk 0:02:01]} 22. Bd3 {[%clk 0:01:01]}  Bxd3 {[%clk 0:01:46]} 23. Qxd3 {[%clk 0:00:55]}  Kg8 {[%clk 0:01:26]} 24. Kh1 {[%clk 0:00:49]}  Qe8 {[%clk 0:01:14]} 25. Qxd4 {[%clk 0:00:46]}  a5 {[%clk 0:01:13]} 26. b4 {[%clk 0:00:30]}  axb4 {[%clk 0:01:11]} 27. axb4 {[%clk 0:00:31]}  Rxc3 {[%clk 0:01:08]} 28. Qxc3 {[%clk 0:00:32]}  c5 {[%clk 0:01:07]} 29. bxc5 {[%clk 0:00:24]}  Bxc5 {[%clk 0:01:06]} 30. f5 {[%clk 0:00:24]}  Ra3 {[%clk 0:01:04]} 31. Qb2 {[%clk 0:00:19]}  Qa8 {[%clk 0:01:03]} 32. Kh2 {[%clk 0:00:14]}  Ra2 {[%clk 0:01:00]} 33. Ra1 {[%clk 0:00:13]}  Rxa1 {[%clk 0:00:48]} 34. Qxa1 {[%clk 0:00:08]}  Qe4 {[%clk 0:00:46]} 35. Qe1 {[%clk 0:00:06]}  Qd5 {[%clk 0:00:41]} 36. Qe2 {[%clk 0:00:04]}  b5 {[%clk 0:00:39]} 37. e6 {[%clk 0:00:04]}  fxe6 {[%clk 0:00:38]} 38. fxe6 {[%clk 0:00:05]}  Be7 {[%clk 0:00:36]} 39. Rf7 {[%clk 0:00:05]}  b4 {[%clk 0:00:34]} 40. Kh1 {[%clk 0:00:03]}  Qd6 {[%clk 0:00:31]} 41. Rf3 {[%clk 0:00:02]}  Qc5 {[%clk 0:00:23]} 42. Rf1 {[%clk 0:00:02]}  b3 {[%clk 0:00:22]} 43. Qf3 {[%clk 0:00:03]}  Bf6 {[%clk 0:00:21]} 44. Qa8+ {[%clk 0:00:02]}  Kh7 {[%clk 0:00:21]} 45. Qa4 {[%clk 0:00:02]}  b2 {[%clk 0:00:17]} 46. Qe4+ {[%clk 0:00:02]}  Kg8 {[%clk 0:00:16]} 47. Rd1 {[%clk 0:00:02]}  Qc1 {[%clk 0:00:15]} 48. Qd3 {[%clk 0:00:02]}  Qc6 {[%clk 0:00:13]} 49. Qe2 {[%clk 0:00:01]}  Qc1 {[%clk 0:00:12]} 50. Qd3 {[%clk 0:00:02]}  Qc6 {[%clk 0:00:11]} 51. Re1 {[%clk 0:00:02]}  Be7 {[%clk 0:00:09]} 52. Qe2 {[%clk 0:00:02]}  Qc1 {[%clk 0:00:09]} 53. Qe4 {[%clk 0:00:02]}  Qc3 {[%clk 0:00:08]} 54. Qb1 {[%clk 0:00:02]}  Qb3 {[%clk 0:00:07]} 55. Re2 {[%clk 0:00:02]}  Qc3 {[%clk 0:00:06]} 56. Qxb2 {[%clk 0:00:02]}  Qxb2 {[%clk 0:00:06]} 57. Rxb2 {[%clk 0:00:02]}  g5 {[%clk 0:00:06]} 58. Rf2 {[%clk 0:00:02]}  Bd6 {[%clk 0:00:05]} 59. Rf7 {[%clk 0:00:03]}  Bc5 {[%clk 0:00:04]} 60. g4 {[%clk 0:00:04]}  Bd6 {[%clk 0:00:04]} 61. Kg2 {[%clk 0:00:05]}  Bc5 {[%clk 0:00:05]} 62. Kf3 {[%clk 0:00:06]}  Bd6 {[%clk 0:00:05]} 63. Ke4 {[%clk 0:00:07]}  Bc5 {[%clk 0:00:05]} 64. Kf5 {[%clk 0:00:08]}  Bd6 {[%clk 0:00:06]} 65. Kg6 {[%clk 0:00:09]}  Bc5 {[%clk 0:00:05]} 66. Kxh6 {[%clk 0:00:09]}  Be3 {[%clk 0:00:05]} 67. Kg6 {[%clk 0:00:09]}  Bd2 {[%clk 0:00:05]} 68. Rd7 {[%clk 0:00:09]}  Bb4 {[%clk 0:00:04]} 69. Rd8+ {[%clk 0:00:09]}  Bf8 {[%clk 0:00:01]} 70. e7 {[%clk 0:00:09]} 1-0

[Event "November 21 Early 2023"]
[Site "https://www.chess.com"]
[Date "2023.11.21"]
[Round "5"]
[White "Mushini Ajay"]
[Black "Santos Flores, Alberto"]
[Result "0-1"]
[Board "119"]
[TimeControl "180+1"]
[WhiteFideId "35066188"]
[BlackFideId "3601234"]
[WhiteElo "2162"]
[BlackElo "2235"]
[WhiteTeam "IND"]
[BlackTeam "ECU"]
[WhiteClock "0:00:17"]
[BlackClock "0:00:50"]

1. e4 {[%clk 0:02:54]}  e6 {[%clk 0:02:59]} 2. d4 {[%clk 0:02:50]}  d5 {[%clk 0:03:00]} 3. Nc3 {[%clk 0:02:51]}  Nf6 {[%clk 0:03:00]} 4. e5 {[%clk 0:02:51]}  Nfd7 {[%clk 0:03:00]} 5. f4 {[%clk 0:02:51]}  c5 {[%clk 0:03:00]} 6. Nf3 {[%clk 0:02:51]}  Nc6 {[%clk 0:03:00]} 7. Be3 {[%clk 0:02:50]}  Qb6 {[%clk 0:03:00]} 8. Na4 {[%clk 0:02:47]}  Qa5+ {[%clk 0:03:00]} 9. c3 {[%clk 0:02:47]}  b6 {[%clk 0:03:00]} 10. Bd2 {[%clk 0:02:45]}  c4 {[%clk 0:03:00]} 11. b4 {[%clk 0:02:44]}  Qa6 {[%clk 0:03:00]} 12. Nb2 {[%clk 0:02:43]}  Qa3 {[%clk 0:02:59]} 13. Qc2 {[%clk 0:02:38]}  b5 {[%clk 0:02:56]} 14. f5 {[%clk 0:02:35]}  a5 {[%clk 0:02:54]} 15. bxa5 {[%clk 0:02:34]}  Qxa5 {[%clk 0:02:53]} 16. fxe6 {[%clk 0:02:30]}  fxe6 {[%clk 0:02:54]} 17. a4 {[%clk 0:02:28]}  b4 {[%clk 0:02:54]} 18. Bxc4 {[%clk 0:02:25]}  dxc4 {[%clk 0:02:47]} 19. Nxc4 {[%clk 0:02:26]}  Qa6 {[%clk 0:02:47]} 20. Ne3 {[%clk 0:02:20]}  bxc3 {[%clk 0:02:42]} 21. Bxc3 {[%clk 0:02:21]}  Bb4 {[%clk 0:02:37]} 22. Kf2 {[%clk 0:02:16]}  O-O {[%clk 0:02:37]} 23. Rhf1 {[%clk 0:02:09]}  Nb6 {[%clk 0:02:25]} 24. Kg1 {[%clk 0:02:02]}  h6 {[%clk 0:02:10]} 25. Nh4 {[%clk 0:01:43]}  Bd7 {[%clk 0:02:06]} 26. Ng6 {[%clk 0:01:36]}  Rxf1+ {[%clk 0:02:05]} 27. Rxf1 {[%clk 0:01:37]}  Qxa4 {[%clk 0:01:49]} 28. Qd2 {[%clk 0:01:02]}  Bxc3 {[%clk 0:01:41]} 29. Qxc3 {[%clk 0:01:02]}  Qxd4 {[%clk 0:01:37]} 30. Ne7+ {[%clk 0:00:58]}  Kh8 {[%clk 0:01:28]} 31. Ng6+ {[%clk 0:00:52]}  Kh7 {[%clk 0:01:22]} 32. Qxd4 {[%clk 0:00:48]}  Nxd4 {[%clk 0:01:23]} 33. Nf8+ {[%clk 0:00:48]}  Kg8 {[%clk 0:01:23]} 34. Ng6 {[%clk 0:00:41]}  Nc6 {[%clk 0:01:13]} 35. h4 {[%clk 0:00:35]}  Nd5 {[%clk 0:01:08]} 36. Nc4 {[%clk 0:00:25]}  Nce7 {[%clk 0:01:02]} 37. h5 {[%clk 0:00:17]}  Nxg6 {[%clk 0:00:58]} 38. hxg6 {[%clk 0:00:18]}  Bb5 {[%clk 0:00:55]} 39. Rc1 {[%clk 0:00:17]}  Rc8 {[%clk 0:00:55]} 40. Rc2 {[%clk 0:00:17]}  Bxc4 {[%clk 0:00:50]} 0-1